[Event "Late-Titled-Tuesday-Blitz-October-17-2023"]
[Site "Chess.com"]
[Date "2023.10.17"]
[Round "10"]
[White "Chessbard1972"]
[Black "campochess"]
[Result "1-0"]
[WhiteElo "2337"]
[BlackElo "2192"]
[TimeControl "180+1"]
[EndTime "15:51:02 PDT"]
[Termination "Chessbard1972 won by resignation"]

1. d4 {[%clk 0:02:54.9]} 1... Nf6 {[%clk 0:02:58]} 2. c4 {[%clk 0:02:53.9]} 2...
g6 {[%clk 0:02:56.5]} 3. Nf3 {[%clk 0:02:53.3]} 3... d5 {[%clk 0:02:55.1]} 4. g3
{[%clk 0:02:54.2]} 4... Bg7 {[%clk 0:02:53.9]} 5. Bg2 {[%clk 0:02:53.9]} 5...
O-O {[%clk 0:02:53.1]} 6. cxd5 {[%clk 0:02:54.2]} 6... Nxd5 {[%clk 0:02:52]} 7.
O-O {[%clk 0:02:55.1]} 7... Nb6 {[%clk 0:02:51.1]} 8. e3 {[%clk 0:02:55.1]} 8...
N8d7 {[%clk 0:02:49.9]} 9. Nc3 {[%clk 0:02:53.1]} 9... c5 {[%clk 0:02:50]} 10.
Qe2 {[%clk 0:02:47.9]} 10... Re8 {[%clk 0:02:46.5]} 11. Rd1 {[%clk 0:02:46.8]}
11... Qc7 {[%clk 0:02:43.7]} 12. Nb5 {[%clk 0:02:42.8]} 12... Qb8 {[%clk
0:02:43.3]} 13. e4 {[%clk 0:02:31.7]} 13... a6 {[%clk 0:02:43.2]} 14. dxc5
{[%clk 0:02:21.5]} 14... axb5 {[%clk 0:02:33.9]} 15. cxb6 {[%clk 0:02:20.7]}
15... Nxb6 {[%clk 0:02:33.8]} 16. Qxb5 {[%clk 0:02:19.4]} 16... Nd7 {[%clk
0:02:03]} 17. Bf4 {[%clk 0:02:06.8]} 17... e5 {[%clk 0:02:01.3]} 18. Bg5 {[%clk
0:02:02.2]} 18... f6 {[%clk 0:02:00.7]} 19. Be3 {[%clk 0:02:01.1]} 19... Re7
{[%clk 0:02:00.1]} 20. Bh3 {[%clk 0:01:53.9]} 20... Nf8 {[%clk 0:01:57]} 21. Rd8
{[%clk 0:01:49.5]} 21... Bxh3 {[%clk 0:01:53.2]} 22. Rxb8 {[%clk 0:01:48.9]}
22... Rxb8 {[%clk 0:01:53]} 23. Rc1 {[%clk 0:01:43.3]} 23... h5 {[%clk 0:01:40]}
24. Bc5 {[%clk 0:01:33.6]} 24... Rc7 {[%clk 0:01:36.3]} 25. Rc3 {[%clk
0:01:31.7]} 25... Ne6 {[%clk 0:01:34.1]} 26. Bd6 {[%clk 0:01:29.7]} 26... Rxc3
{[%clk 0:01:33.3]} 27. bxc3 {[%clk 0:01:30]} 27... Rc8 {[%clk 0:01:25]} 28. Qxb7
{[%clk 0:01:26.5]} 28... Ng5 {[%clk 0:01:19.3]} 29. Nxg5 {[%clk 0:01:23]} 29...
fxg5 {[%clk 0:01:19.3]} 30. Qb4 {[%clk 0:01:16.1]} 30... Rc6 {[%clk 0:01:16.3]}
31. f3 {[%clk 0:01:14.1]} 31... g4 {[%clk 0:01:14.3]} 32. Kf2 {[%clk 0:01:11.8]}
32... gxf3 {[%clk 0:01:14.4]} 33. Kxf3 {[%clk 0:01:11.9]} 33... Bg4+ {[%clk
0:01:12.9]} 34. Kg2 {[%clk 0:01:09.9]} 34... Be6 {[%clk 0:01:12.1]} 35. a4
{[%clk 0:01:04.2]} 35... Rc4 {[%clk 0:01:11]} 36. Qb8+ {[%clk 0:01:02.6]} 36...
Kh7 {[%clk 0:01:09.8]} 37. Qb7 {[%clk 0:00:56.7]} 37... Kg8 {[%clk 0:00:56.1]}
38. Qb8+ {[%clk 0:00:52.1]} 38... Kh7 {[%clk 0:00:54]} 39. Bxe5 {[%clk
0:00:50.7]} 39... Rxa4 {[%clk 0:00:45.4]} 40. Qc7 {[%clk 0:00:47.8]} 40... Ra2+
{[%clk 0:00:41.8]} 41. Kf3 {[%clk 0:00:37.7]} 41... Bg4+ {[%clk 0:00:30.6]} 42.
Ke3 {[%clk 0:00:17.5]} 42... Re2+ {[%clk 0:00:29.1]} 43. Kd3 {[%clk 0:00:16.9]}
1-0

[Event "Late-Titled-Tuesday-Blitz-October-17-2023"]
[Site "Chess.com"]
[Date "2023.10.17"]
[Round "10"]
[White "aNaartjieZA"]
[Black "rasmussvane"]
[Result "0-1"]
[WhiteElo "2560"]
[BlackElo "2959"]
[TimeControl "180+1"]
[EndTime "15:51:06 PDT"]
[Termination "rasmussvane won by resignation"]

1. e4 {[%clk 0:02:57.8]} 1... e6 {[%clk 0:02:49.3]} 2. d3 {[%clk 0:02:57.7]}
2... d5 {[%clk 0:02:49.5]} 3. Nd2 {[%clk 0:02:58]} 3... Nc6 {[%clk 0:02:47.2]}
4. Ngf3 {[%clk 0:02:57.8]} 4... Nf6 {[%clk 0:02:45.8]} 5. c3 {[%clk 0:02:58.1]}
5... e5 {[%clk 0:02:45.1]} 6. Be2 {[%clk 0:02:57.9]} 6... Bd6 {[%clk 0:02:42]}
7. O-O {[%clk 0:02:57.9]} 7... O-O {[%clk 0:02:42.3]} 8. Re1 {[%clk 0:02:58]}
8... Re8 {[%clk 0:02:42.4]} 9. Bf1 {[%clk 0:02:57.8]} 9... h6 {[%clk 0:02:40.3]}
10. a3 {[%clk 0:02:48]} 10... a5 {[%clk 0:02:38.9]} 11. a4 {[%clk 0:02:48.3]}
11... Be6 {[%clk 0:02:15.2]} 12. exd5 {[%clk 0:02:26.9]} 12... Bxd5 {[%clk
0:02:09]} 13. Ne4 {[%clk 0:02:23.9]} 13... Be7 {[%clk 0:01:58]} 14. Ng3 {[%clk
0:02:14.2]} 14... Bc5 {[%clk 0:01:54]} 15. Be3 {[%clk 0:02:07.3]} 15... Bxe3
{[%clk 0:01:42.8]} 16. Rxe3 {[%clk 0:02:06.8]} 16... Qd6 {[%clk 0:01:40.3]} 17.
Nh4 {[%clk 0:01:55.4]} 17... Qf8 {[%clk 0:01:34.6]} 18. Be2 {[%clk 0:01:45.2]}
18... Rad8 {[%clk 0:01:33.2]} 19. Qc2 {[%clk 0:01:36.2]} 19... Qc5 {[%clk
0:01:23.3]} 20. Bf3 {[%clk 0:01:25.3]} 20... Nd4 {[%clk 0:01:19.8]} 21. Qd1
{[%clk 0:01:10.5]} 21... Nxf3+ {[%clk 0:01:18.7]} 22. Nxf3 {[%clk 0:01:08.7]}
22... Ng4 {[%clk 0:01:17.1]} 23. Re2 {[%clk 0:00:46.4]} 23... Bxf3 {[%clk
0:01:17.4]} 24. gxf3 {[%clk 0:00:46.7]} 24... Nf6 {[%clk 0:01:18.1]} 25. Ne4
{[%clk 0:00:40.7]} 25... Nxe4 {[%clk 0:01:13.9]} 26. fxe4 {[%clk 0:00:40.8]}
26... Rd6 {[%clk 0:01:12.2]} 27. Re3 {[%clk 0:00:40.9]} 27... Rg6+ {[%clk
0:00:54.1]} 28. Rg3 {[%clk 0:00:40.4]} 28... Rf6 {[%clk 0:00:54.5]} 29. Qe2
{[%clk 0:00:40]} 29... Ree6 {[%clk 0:00:54.1]} 30. Rd1 {[%clk 0:00:35.8]} 30...
Rf4 {[%clk 0:00:54]} 31. Qe3 {[%clk 0:00:34.4]} 31... Qc6 {[%clk 0:00:46.5]} 32.
Re1 {[%clk 0:00:08]} 32... Ref6 {[%clk 0:00:38.3]} 33. Re2 {[%clk 0:00:04.3]}
33... Qxa4 {[%clk 0:00:36]} 34. d4 {[%clk 0:00:04.6]} 34... Qb5 {[%clk
0:00:28.6]} 35. c4 {[%clk 0:00:01.7]} 35... Qe8 {[%clk 0:00:28]} 36. dxe5 {[%clk
0:00:02.1]} 36... Qxe5 {[%clk 0:00:28.4]} 37. Rc2 {[%clk 0:00:02.6]} 37... Rxe4
{[%clk 0:00:27.9]} 0-1

[Event "Late-Titled-Tuesday-Blitz-October-17-2023"]
[Site "Chess.com"]
[Date "2023.10.17"]
[Round "10"]
[White "ElenGajger"]
[Black "PushingpawnsNYC"]
[Result "1-0"]
[WhiteElo "2386"]
[BlackElo "2347"]
[TimeControl "180+1"]
[EndTime "15:51:06 PDT"]
[Termination "ElenGajger won by checkmate"]

1. e4 {[%clk 0:02:58.9]} 1... c5 {[%clk 0:02:59.9]} 2. Nc3 {[%clk 0:02:56.6]}
2... e6 {[%clk 0:03:00]} 3. b3 {[%clk 0:02:53.5]} 3... a6 {[%clk 0:03:00.1]} 4.
Bb2 {[%clk 0:02:53.5]} 4... Qc7 {[%clk 0:03:00.8]} 5. Nf3 {[%clk 0:02:52]} 5...
b5 {[%clk 0:03:00.9]} 6. Be2 {[%clk 0:02:49.6]} 6... Bb7 {[%clk 0:03:01.5]} 7.
d3 {[%clk 0:02:48.3]} 7... d6 {[%clk 0:03:02]} 8. O-O {[%clk 0:02:48.2]} 8...
Nf6 {[%clk 0:03:02.4]} 9. Qd2 {[%clk 0:02:46]} 9... Be7 {[%clk 0:03:02.7]} 10.
Rae1 {[%clk 0:02:44.8]} 10... O-O {[%clk 0:03:02.7]} 11. h3 {[%clk 0:02:42.6]}
11... Nc6 {[%clk 0:02:58.3]} 12. Nh2 {[%clk 0:02:40.5]} 12... b4 {[%clk
0:02:58.1]} 13. Nd1 {[%clk 0:02:37.9]} 13... e5 {[%clk 0:02:58.4]} 14. Ne3
{[%clk 0:02:35.4]} 14... Nd4 {[%clk 0:02:56.9]} 15. Bd1 {[%clk 0:02:26.3]} 15...
a5 {[%clk 0:02:44.8]} 16. f4 {[%clk 0:02:22.9]} 16... a4 {[%clk 0:02:40.8]} 17.
fxe5 {[%clk 0:02:05.7]} 17... dxe5 {[%clk 0:02:40.2]} 18. Bxd4 {[%clk
0:02:03.6]} 18... cxd4 {[%clk 0:02:34.1]} 19. Nf5 {[%clk 0:02:02.3]} 19... axb3
{[%clk 0:02:31.1]} 20. axb3 {[%clk 0:02:01.2]} 20... g6 {[%clk 0:02:20.5]} 21.
Nxe7+ {[%clk 0:01:52.1]} 21... Qxe7 {[%clk 0:02:20.3]} 22. h4 {[%clk 0:01:25.1]}
22... Ne8 {[%clk 0:02:00.8]} 23. h5 {[%clk 0:01:21.7]} 23... Ng7 {[%clk
0:02:00.5]} 24. Ng4 {[%clk 0:01:07.1]} 24... Ra6 {[%clk 0:01:46]} 25. Qh6 {[%clk
0:00:48.5]} 25... Nxh5 {[%clk 0:01:37.9]} 26. Rf3 {[%clk 0:00:35.9]} 26... f5
{[%clk 0:01:26.7]} 27. Ref1 {[%clk 0:00:30.9]} 27... Raa8 {[%clk 0:00:48.8]} 28.
exf5 {[%clk 0:00:30.1]} 28... Bxf3 {[%clk 0:00:47.4]} 29. Bxf3 {[%clk
0:00:28.2]} 29... Ra6 {[%clk 0:00:30.1]} 30. Bd5+ {[%clk 0:00:26]} 30... Kh8
{[%clk 0:00:30.4]} 31. Bc4 {[%clk 0:00:20.6]} 31... Rd6 {[%clk 0:00:26.5]} 32.
Nxe5 {[%clk 0:00:20]} 32... Rxf5 {[%clk 0:00:19.4]} 33. Rxf5 {[%clk 0:00:19.5]}
33... gxf5 {[%clk 0:00:17.3]} 34. Qxh5 {[%clk 0:00:16.7]} 34... Qxe5 {[%clk
0:00:17.4]} 35. Qf7 {[%clk 0:00:15.1]} 35... Rg6 {[%clk 0:00:14.3]} 36. Qf8+
{[%clk 0:00:13.4]} 36... Rg8 {[%clk 0:00:09]} 37. Qxg8# {[%clk 0:00:14.3]} 1-0

[Event "Late-Titled-Tuesday-Blitz-October-17-2023"]
[Site "Chess.com"]
[Date "2023.10.17"]
[Round "10"]
[White "victormago"]
[Black "rikchessmx"]
[Result "1/2-1/2"]
[WhiteElo "2428"]
[BlackElo "2305"]
[TimeControl "180+1"]
[EndTime "15:51:12 PDT"]
[Termination "Game drawn by repetition"]

1. d4 {[%clk 0:02:58.1]} 1... Nf6 {[%clk 0:02:58.9]} 2. c4 {[%clk 0:02:57.6]}
2... e6 {[%clk 0:02:59.5]} 3. Nc3 {[%clk 0:02:56.7]} 3... d5 {[%clk 0:02:58.4]}
4. cxd5 {[%clk 0:02:56.2]} 4... exd5 {[%clk 0:02:59.3]} 5. Bg5 {[%clk
0:02:55.6]} 5... Nbd7 {[%clk 0:02:57.6]} 6. e3 {[%clk 0:02:52.5]} 6... Be7
{[%clk 0:02:57.1]} 7. Bd3 {[%clk 0:02:50.5]} 7... O-O {[%clk 0:02:56.9]} 8. Nf3
{[%clk 0:02:50.7]} 8... c6 {[%clk 0:02:57.4]} 9. O-O {[%clk 0:02:50.5]} 9... Re8
{[%clk 0:02:58.3]} 10. Rb1 {[%clk 0:02:48.5]} 10... a5 {[%clk 0:02:54.4]} 11. a3
{[%clk 0:02:48.2]} 11... Ne4 {[%clk 0:02:53.9]} 12. Bxe7 {[%clk 0:02:47]} 12...
Qxe7 {[%clk 0:02:53.6]} 13. Qc2 {[%clk 0:02:42.4]} 13... f5 {[%clk 0:02:52.1]}
14. b4 {[%clk 0:02:35.9]} 14... axb4 {[%clk 0:02:52.1]} 15. axb4 {[%clk
0:02:36.8]} 15... b5 {[%clk 0:02:52.4]} 16. Rfc1 {[%clk 0:02:19.6]} 16... Bb7
{[%clk 0:02:51]} 17. Ne2 {[%clk 0:02:09]} 17... Ra3 {[%clk 0:02:41.8]} 18. Bxe4
{[%clk 0:01:52.9]} 18... fxe4 {[%clk 0:02:38.6]} 19. Nd2 {[%clk 0:01:50.6]}
19... Nb6 {[%clk 0:02:31.3]} 20. Nb3 {[%clk 0:01:42.4]} 20... Nc4 {[%clk
0:02:29.1]} 21. Nc5 {[%clk 0:01:41.7]} 21... Bc8 {[%clk 0:02:28.5]} 22. Ra1
{[%clk 0:01:38.7]} 22... Qa7 {[%clk 0:02:26.7]} 23. Rxa3 {[%clk 0:01:33.7]}
23... Qxa3 {[%clk 0:02:25.8]} 24. Rb1 {[%clk 0:01:32.9]} 24... Bg4 {[%clk
0:02:18.3]} 25. Ng3 {[%clk 0:01:28.3]} 25... g6 {[%clk 0:02:10.5]} 26. h3 {[%clk
0:01:27.3]} 26... Bc8 {[%clk 0:02:02.8]} 27. Qc1 {[%clk 0:01:24.2]} 27... Qa7
{[%clk 0:01:56.8]} 28. Ra1 {[%clk 0:01:23.6]} 28... Qf7 {[%clk 0:01:56.6]} 29.
Ra2 {[%clk 0:01:16.7]} 29... Rf8 {[%clk 0:01:56.4]} 30. Qe1 {[%clk 0:01:09.7]}
30... h5 {[%clk 0:01:55.5]} 31. Nf1 {[%clk 0:01:04.1]} 31... g5 {[%clk
0:01:42.3]} 32. Nd2 {[%clk 0:01:03.1]} 32... g4 {[%clk 0:01:41.1]} 33. h4 {[%clk
0:01:01.3]} 33... Nd6 {[%clk 0:01:39.7]} 34. g3 {[%clk 0:00:56.8]} 34... Nf5
{[%clk 0:01:37.6]} 35. Nf1 {[%clk 0:00:56.3]} 35... Nd6 {[%clk 0:01:22.1]} 36.
Qc1 {[%clk 0:00:51.9]} 36... Nc4 {[%clk 0:01:21.1]} 37. Qe1 {[%clk 0:00:48.3]}
37... Qf3 {[%clk 0:01:18.3]} 38. Nd2 {[%clk 0:00:44.4]} 38... Qf7 {[%clk
0:01:10.2]} 39. Nxc4 {[%clk 0:00:41.9]} 39... bxc4 {[%clk 0:01:10.3]} 40. Qc3
{[%clk 0:00:42.3]} 40... Bf5 {[%clk 0:01:07.1]} 41. Qc2 {[%clk 0:00:32.6]} 41...
Bc8 {[%clk 0:01:02]} 42. Qa4 {[%clk 0:00:30.7]} 42... Qf3 {[%clk 0:00:57.8]} 43.
Qxc6 {[%clk 0:00:24.3]} 43... Qd1+ {[%clk 0:00:56.2]} 44. Kh2 {[%clk 0:00:19.7]}
44... Qf1 {[%clk 0:00:43.4]} 45. Qxd5+ {[%clk 0:00:19.4]} 45... Rf7 {[%clk
0:00:42.9]} 46. Nxe4 {[%clk 0:00:16.1]} 46... Bb7 {[%clk 0:00:42.8]} 47. Qg5+
{[%clk 0:00:15.3]} 47... Kf8 {[%clk 0:00:39.1]} 48. Qd8+ {[%clk 0:00:14.8]}
48... Kg7 {[%clk 0:00:39]} 49. Qg5+ {[%clk 0:00:15.4]} 49... Kf8 {[%clk
0:00:38.3]} 50. Qc5+ {[%clk 0:00:15.3]} 50... Kg8 {[%clk 0:00:33.3]} 51. Qg5+
{[%clk 0:00:12.3]} 51... Kf8 {[%clk 0:00:32.1]} 1/2-1/2

[Event "Late-Titled-Tuesday-Blitz-October-17-2023"]
[Site "Chess.com"]
[Date "2023.10.17"]
[Round "10"]
[White "ameetghasi100"]
[Black "Hrant_ChessMood"]
[Result "0-1"]
[WhiteElo "2798"]
[BlackElo "2929"]
[TimeControl "180+1"]
[EndTime "15:51:16 PDT"]
[Termination "Hrant_ChessMood won by resignation"]

1. Nf3 {[%clk 0:03:00.9]} 1... c5 {[%clk 0:02:59.5]} 2. g3 {[%clk 0:03:00.9]}
2... Nc6 {[%clk 0:02:59.7]} 3. Bg2 {[%clk 0:03:01.8]} 3... e5 {[%clk 0:03:00.2]}
4. O-O {[%clk 0:03:02.7]} 4... d5 {[%clk 0:03:00.6]} 5. d3 {[%clk 0:03:02.2]}
5... Be7 {[%clk 0:03:00.9]} 6. Nc3 {[%clk 0:03:01.9]} 6... d4 {[%clk 0:02:59.4]}
7. Ne4 {[%clk 0:02:45.6]} 7... f5 {[%clk 0:02:59.4]} 8. Ned2 {[%clk 0:02:45.7]}
8... Nh6 {[%clk 0:02:58]} 9. c3 {[%clk 0:02:45.8]} 9... O-O {[%clk 0:02:57.1]}
10. Nc4 {[%clk 0:02:41.4]} 10... Nf7 {[%clk 0:02:56.5]} 11. cxd4 {[%clk
0:02:40.8]} 11... cxd4 {[%clk 0:02:56]} 12. Bd2 {[%clk 0:02:41.3]} 12... Be6
{[%clk 0:02:55.5]} 13. Rc1 {[%clk 0:02:41.1]} 13... Qd7 {[%clk 0:02:52.3]} 14.
a4 {[%clk 0:02:27.5]} 14... Rfc8 {[%clk 0:02:45.2]} 15. Ne1 {[%clk 0:02:08.2]}
15... Rab8 {[%clk 0:02:32.3]} 16. Nc2 {[%clk 0:01:37.2]} 16... Bxc4 {[%clk
0:02:27.4]} 17. dxc4 {[%clk 0:01:38.1]} 17... e4 {[%clk 0:02:27.8]} 18. b3
{[%clk 0:01:28.5]} 18... a5 {[%clk 0:02:22.8]} 19. Bf4 {[%clk 0:01:13.9]} 19...
Ra8 {[%clk 0:02:18.6]} 20. Qd2 {[%clk 0:01:12.8]} 20... g5 {[%clk 0:02:13.9]}
21. Bh3 {[%clk 0:01:12.6]} 21... gxf4 {[%clk 0:02:10.1]} 22. Qxf4 {[%clk
0:01:13.5]} 22... Bg5 {[%clk 0:02:04.7]} 23. Qxf5 {[%clk 0:00:59.1]} 23... Qxf5
{[%clk 0:02:03.8]} 24. Bxf5 {[%clk 0:01:00]} 24... Bxc1 {[%clk 0:02:04.2]} 25.
Bxc8 {[%clk 0:00:58.8]} 25... Rxc8 {[%clk 0:02:05.1]} 26. Rxc1 {[%clk
0:00:59.3]} 26... Nfe5 {[%clk 0:02:02.3]} 27. Rd1 {[%clk 0:00:58.6]} 27... Rd8
{[%clk 0:02:00.4]} 28. Kg2 {[%clk 0:00:50.8]} 28... d3 {[%clk 0:01:59]} 29. exd3
{[%clk 0:00:50.1]} 29... exd3 {[%clk 0:01:59.4]} 30. Ne3 {[%clk 0:00:50.1]}
30... Nb4 {[%clk 0:01:53.8]} 31. f4 {[%clk 0:00:49.1]} 31... Nec6 {[%clk
0:01:53.9]} 32. Nf5 {[%clk 0:00:37.3]} 32... Re8 {[%clk 0:01:50]} 33. Kf3 {[%clk
0:00:27.4]} 33... h5 {[%clk 0:01:42.1]} 34. h3 {[%clk 0:00:26.3]} 34... Rd8
{[%clk 0:01:36.9]} 35. g4 {[%clk 0:00:21.2]} 35... hxg4+ {[%clk 0:01:36.8]} 36.
hxg4 {[%clk 0:00:22.1]} 36... Na2 {[%clk 0:01:37.7]} 37. Ke3 {[%clk 0:00:19.4]}
37... Ncb4 {[%clk 0:01:37.7]} 38. Rd2 {[%clk 0:00:14.3]} 38... Nc1 {[%clk
0:01:36.9]} 39. Rb2 {[%clk 0:00:11.6]} 39... Re8+ {[%clk 0:01:34.8]} 40. Kd2
{[%clk 0:00:12]} 40... Ne2 {[%clk 0:01:19.9]} 41. Nd6 {[%clk 0:00:12.3]} 41...
Re7 {[%clk 0:01:14]} 42. f5 {[%clk 0:00:11.7]} 42... Nf4 {[%clk 0:01:14.2]} 43.
Kc3 {[%clk 0:00:06.4]} 43... Re2 {[%clk 0:01:12.2]} 44. Rd2 {[%clk 0:00:01.4]}
44... Na2+ {[%clk 0:01:11.1]} 45. Rxa2 {[%clk 0:00:01.9]} 45... Rxa2 {[%clk
0:01:11.1]} 46. Ne4 {[%clk 0:00:02.8]} 46... Rc2+ {[%clk 0:01:08.6]} 47. Kd4
{[%clk 0:00:03.6]} 47... d2 {[%clk 0:01:07.1]} 48. Nxd2 {[%clk 0:00:04.1]} 48...
Rxd2+ {[%clk 0:01:08]} 49. Ke3 {[%clk 0:00:05]} 49... Rd3+ {[%clk 0:01:07.1]}
50. Kxf4 {[%clk 0:00:05.9]} 50... Rxb3 {[%clk 0:01:08]} 51. g5 {[%clk
0:00:04.4]} 51... Rb4 {[%clk 0:01:08.9]} 52. Ke5 {[%clk 0:00:04.7]} 52... Rxc4
{[%clk 0:01:09.2]} 53. g6 {[%clk 0:00:04.6]} 53... Rxa4 {[%clk 0:01:08.2]} 54.
Kf6 {[%clk 0:00:05.5]} 54... Rf4 {[%clk 0:01:07.8]} 55. Kg5 {[%clk 0:00:05.9]}
55... Rxf5+ {[%clk 0:01:07.3]} 56. Kxf5 {[%clk 0:00:06.8]} 56... a4 {[%clk
0:01:08.2]} 57. Kf6 {[%clk 0:00:06.7]} 57... a3 {[%clk 0:01:09.1]} 58. g7 {[%clk
0:00:06.7]} 58... a2 {[%clk 0:01:10]} 59. Kg6 {[%clk 0:00:07]} 59... a1=Q {[%clk
0:01:10.9]} 60. Kh5 {[%clk 0:00:07.6]} 60... Qxg7 {[%clk 0:01:10.2]} 0-1

[Event "Late-Titled-Tuesday-Blitz-October-17-2023"]
[Site "Chess.com"]
[Date "2023.10.17"]
[Round "10"]
[White "Payyappat"]
[Black "balachess2006"]
[Result "1-0"]
[WhiteElo "2514"]
[BlackElo "2579"]
[TimeControl "180+1"]
[EndTime "15:51:16 PDT"]
[Termination "Payyappat won by resignation"]

1. e4 {[%clk 0:03:00.9]} 1... c5 {[%clk 0:03:00.1]} 2. Nf3 {[%clk 0:02:59.4]}
2... Nc6 {[%clk 0:03:00.4]} 3. d4 {[%clk 0:02:59]} 3... cxd4 {[%clk 0:03:01.3]}
4. Nxd4 {[%clk 0:02:59.9]} 4... g6 {[%clk 0:03:01.4]} 5. Nc3 {[%clk 0:02:59.8]}
5... Bg7 {[%clk 0:03:01.5]} 6. Be3 {[%clk 0:02:59.4]} 6... Nf6 {[%clk
0:03:02.1]} 7. f4 {[%clk 0:02:59.1]} 7... d6 {[%clk 0:02:55.7]} 8. Be2 {[%clk
0:02:57.4]} 8... O-O {[%clk 0:02:55.5]} 9. O-O {[%clk 0:02:56.4]} 9... Nxd4
{[%clk 0:02:48.7]} 10. Bxd4 {[%clk 0:02:55.8]} 10... Be6 {[%clk 0:02:47.9]} 11.
f5 {[%clk 0:02:48.8]} 11... Bd7 {[%clk 0:02:47.3]} 12. g4 {[%clk 0:02:36.1]}
12... Bc6 {[%clk 0:02:43.5]} 13. Bf3 {[%clk 0:02:32.7]} 13... Nd7 {[%clk
0:02:40]} 14. g5 {[%clk 0:02:13.7]} 14... Bxd4+ {[%clk 0:02:37]} 15. Qxd4 {[%clk
0:02:14.6]} 15... Qb6 {[%clk 0:02:36.5]} 16. Qxb6 {[%clk 0:02:10.3]} 16... Nxb6
{[%clk 0:02:37.4]} 17. Rad1 {[%clk 0:02:03.9]} 17... Nd7 {[%clk 0:02:36.4]} 18.
Bg2 {[%clk 0:01:57.4]} 18... Rfd8 {[%clk 0:02:34.3]} 19. f6 {[%clk 0:01:35.4]}
19... exf6 {[%clk 0:02:28.9]} 20. gxf6 {[%clk 0:01:36.3]} 20... Ne5 {[%clk
0:02:26.8]} 21. Rd4 {[%clk 0:01:33.8]} 21... Re8 {[%clk 0:02:20.9]} 22. Rfd1
{[%clk 0:01:31.3]} 22... Re6 {[%clk 0:02:16]} 23. Rxd6 {[%clk 0:01:30.5]} 23...
Rxd6 {[%clk 0:02:16.3]} 24. Rxd6 {[%clk 0:01:29.5]} 24... Nc4 {[%clk 0:02:17.2]}
25. Rd4 {[%clk 0:01:16.4]} 25... Ne5 {[%clk 0:02:15.8]} 26. Nd5 {[%clk
0:01:11.2]} 26... h6 {[%clk 0:02:03.2]} 27. c4 {[%clk 0:01:00]} 27... Bxd5
{[%clk 0:01:56.8]} 28. exd5 {[%clk 0:00:56.3]} 28... Nd7 {[%clk 0:01:38]} 29. b4
{[%clk 0:00:52.5]} 29... a5 {[%clk 0:01:37.3]} 30. c5 {[%clk 0:00:44.2]} 30...
axb4 {[%clk 0:01:34]} 31. c6 {[%clk 0:00:45.1]} 31... Nxf6 {[%clk 0:01:20.7]}
32. cxb7 {[%clk 0:00:43.4]} 32... Rb8 {[%clk 0:01:21]} 33. d6 {[%clk 0:00:43.1]}
33... Nd7 {[%clk 0:01:15.9]} 34. Bc6 {[%clk 0:00:40.9]} 34... Ne5 {[%clk
0:01:16.2]} 35. Bg2 {[%clk 0:00:18.5]} 35... Nd7 {[%clk 0:01:06.6]} 36. Rc4
{[%clk 0:00:18.5]} 36... Kg7 {[%clk 0:01:02.1]} 37. Rc7 {[%clk 0:00:17.5]} 37...
Ne5 {[%clk 0:00:44.9]} 38. Rc8 {[%clk 0:00:16.9]} 38... Nd7 {[%clk 0:00:43.5]}
39. Bc6 {[%clk 0:00:15.9]} 39... Kf6 {[%clk 0:00:43.2]} 40. Bxd7 {[%clk
0:00:14.4]} 40... Rxb7 {[%clk 0:00:43.6]} 41. Bc6 {[%clk 0:00:14.4]} 41... b3
{[%clk 0:00:39]} 42. d7 {[%clk 0:00:15.3]} 42... b2 {[%clk 0:00:30.5]} 43. d8=Q+
{[%clk 0:00:14.4]} 43... Kg7 {[%clk 0:00:31.1]} 44. Qd4+ {[%clk 0:00:13.1]}
44... f6 {[%clk 0:00:31.7]} 45. Be4 {[%clk 0:00:06.1]} 1-0